bitfinex-derivatives/quotes_ETHF0:USTF0_20250421
["timestamp","ask_amount","ask_price","bid_price","bid_amount"]
[1745263938439,2.98065,1577.4,1577.3,5.87083]
[1745263939240,2.98065,1577.4,1577.3,4.603]
[1745263939437,2.98065,1577.4,1577.3,5.87083]
[1745263939738,2.98065,1577.4,1577.3,4.603]
[1745263940128,2.98065,1577.4,1577.3,5.87083]
[1745263940742,1.7129,1577.4,1577.3,5.87083]
[1745263940940,1.26775,1577.4,1577.3,5.87083]
[1745263943338,5.03671083,1577.5,1577.4,1.26775]
[1745263943741,6.30438083,1577.5,1577.4,1.26775]
[1745263943944,5.03671083,1577.5,1577.4,1.26775]
[1745263944441,3.21731083,1577.5,1577.4,1.26775]
[1745263944642,0.00951083,1577.5,1577.4,1.26775]
[1745263944839,0.00951083,1577.5,1577.4,2.41195]
[1745263945837,3.1682,1578.0,1577.8,1.26739]
[1745263945838,3.2078,1577.9,1577.8,1.26739]
[1745263946036,3.2078,1578.1,1578.0,1.26727]
[1745263946334,3.2078,1578.3,1578.2,1.26711]
[1745263946544,3.2078,1578.3,1578.2,5.87111]
[1745263949337,4.9388,1578.3,1578.2,5.87111]
[1745263950841,6.20583,1578.3,1578.2,4.604]
[1745263952046,6.20583,1578.3,1578.2,5.87111]
[1745263958053,6.20583,1578.3,1578.2,4.604]
[1745263958251,6.20583,1578.3,1578.2,5.87111]
[1745263958452,6.20583,1578.3,1578.2,4.604]
[1745263958756,1.26711,1578.2,1578.1,0.00951083]
[1745263959052,3.93081,1578.2,1578.1,0.00951083]
[1745263961550,1.26735,1577.9,1577.8,4.603]
[1745263961854,4.47515,1577.9,1577.8,4.603]
[1745263962151,1.26751,1577.7,1577.6,2.10702]
[1745263962352,4.47531,1577.7,1577.6,6.71002]
[1745263962853,6.30121,1577.7,1577.6,6.71002]
[1745263963956,4.47518,1577.9,1577.7,1.26751]
[1745263964258,4.47518,1577.9,1577.8,1.26743]
[1745263964447,3.2078,1577.9,1577.8,1.26743]
[1745263964648,4.47499,1578.1,1578.0,1.26727]
[1745263964850,4.47499,1578.1,1578.0,5.87127]
[1745263965056,4.47499,1578.1,1578.0,8.48837]
[1745263965452,6.24309,1578.1,1578.0,8.48837]
[1745263965653,6.24309,1578.1,1578.0,7.2211]
[1745263966047,6.24309,1578.1,1578.0,8.48837]
[1745263967457,6.24309,1578.1,1578.0,4.604]
[1745263968755,6.24309,1578.1,1578.0,5.87127]
[1745263969556,4.9759,1578.1,1578.0,5.87127]
[1745263969857,6.24309,1578.1,1578.0,5.87127]
[1745263970156,4.9759,1578.1,1578.0,5.87127]
[1745263970349,6.24309,1578.1,1578.0,5.87127]
[1745263970545,6.24309,1578.1,1578.0,7.54397]
[1745263971456,4.9759,1578.1,1578.0,7.54397]
[1745263971849,6.24309,1578.1,1578.0,7.54397]
[1745263972051,6.24309,1578.1,1578.0,4.604]
[1745263972545,6.24309,1578.1,1578.0,5.87127]
[1745263973557,6.24309,1578.1,1578.0,4.604]
[1745263974560,6.24309,1578.1,1578.0,5.87127]
[1745263975953,6.24309,1578.1,1578.0,4.604]
[1745263976153,6.24309,1578.1,1578.0,5.87127]
[1745263977651,6.24309,1578.1,1578.0,4.604]
[1745263977862,6.24309,1578.1,1578.0,5.87127]
[1745263979254,6.24309,1578.1,1578.0,4.604]
[1745263979856,6.24309,1578.1,1578.0,5.87127]
[1745263980059,6.24309,1578.1,1578.0,8.47197]
[1745263980256,6.24309,1578.1,1578.0,4.604]
[1745263980961,1.26743,1577.8,1577.7,5.08924]
[1745263981162,4.47523,1577.8,1577.7,9.69124]
[1745263982257,1.26759,1577.6,1577.5,0.52464763]
[1745263982559,4.47539,1577.6,1577.5,0.00951083]
[1745263982750,4.47539,1577.6,1577.5,3.00618083]
[1745263982955,4.47539,1577.6,1577.5,1.73851083]
[1745263984364,6.21549,1577.6,1577.5,1.73851083]
[1745263984860,6.21549,1577.6,1577.5,3.00618083]
[1745263985162,4.47539,1577.6,1577.5,3.00618083]
[1745263985364,3.2078,1577.8,1577.5,1.73851083]
[1745263985562,1.26741,1577.9,1577.8,1.26743]
[1745263985762,1.26741,1577.9,1577.8,4.603]
[1745263985961,1.26741,1577.9,1577.8,5.87043]
[1745263986158,1.26741,1577.9,1577.8,8.54143]
[1745263986762,1.26741,1577.9,1577.8,7.274]
[1745263986962,1.26741,1577.9,1577.8,8.54143]
[1745263987358,3.08111,1577.9,1577.8,8.54143]
[1745263988664,3.08111,1577.9,1577.8,7.274]
[1745263989265,3.08111,1577.9,1577.8,4.603]
[1745263989767,3.99511,1577.9,1577.8,4.603]
[1745263990669,1.26751,1577.7,1577.6,8.46625]
[1745263991164,3.05301,1577.7,1577.6,8.46625]
[1745263992065,3.05301,1577.7,1577.6,4.603]
[1745263992575,1.26759,1577.6,1577.5,0.00951083]
[1745263992771,6.28869,1577.6,1577.5,1.27718083]
[1745263993569,6.28869,1577.6,1577.5,2.98588083]
[1745263994472,4.47539,1577.6,1577.5,2.98588083]
[1745263996470,4.47539,1577.6,1577.5,1.71821083]
[1745263999368,6.15589,1577.6,1577.5,1.71821083]
[1745264000075,6.15589,1577.6,1577.5,0.00951083]
[1745264000473,6.15589,1577.6,1577.5,1.27718083]
[1745264002275,4.47539,1577.6,1577.5,3.05408083]
[1745264003377,3.2078,1577.6,1577.5,8.05408083]
[1745264003678,4.47506,1578.1,1578.0,1.26727]
[1745264003973,1.26727,1578.0,1577.9,8.44279]
[1745264004273,6.24874,1578.1,1578.0,1.26727]
[1745264004476,3.2078,1578.3,1578.0,2.96597]
[1745264004676,6.2486,1578.3,1578.2,1.26711]
[1745264005381,1.26711,1578.2,1578.1,2.96589]
[1745264005581,3.04081,1578.2,1578.1,2.96589]
[1745264009376,1.7737,1578.2,1578.1,2.96589]
[1745264009578,0.00951083,1578.4,1578.2,1.26711]
[1745264009783,0.00951083,1578.4,1578.3,6.75423]
[1745264009981,0.00951083,1578.4,1578.3,7.25690009]
[1745264010181,0.00951083,1578.4,1578.3,17.22080009]
[1745264010381,0.00951083,1578.4,1578.3,58.02080009]
[1745264014579,8.3e-07,1578.4,1578.3,58.02080009]
[1745264014983,3.2078,1579.3,1578.4,6.33448]
[1745264015176,3.16541,1579.4,1578.4,6.33448]
[1745264015177,0.8727,1579.4,1579.3,1.26623]
[1745264015376,3.2078,1579.5,1579.4,1.26615]
[1745264015585,1.26615,1579.4,1579.3,4.599]
[1745264016289,1.26615,1579.4,1579.3,5.86521]
[1745264016490,1.26615,1579.4,1579.3,4.599]
[1745264018280,2.93035,1579.4,1579.3,4.599]
[1745264018883,2.93035,1579.4,1579.3,5.86523]
[1745264019281,1.6642,1579.4,1579.3,5.86523]
[1745264019485,1.6642,1579.4,1579.3,7.64913]
[1745264019786,2.93035,1579.4,1579.3,7.64913]
[1745264019988,1.6642,1579.4,1579.3,7.64913]
[1745264020190,1.6642,1579.4,1579.3,5.86523]
[1745264021186,2.93035,1579.4,1579.3,5.86523]
[1745264021387,2.93035,1579.4,1579.3,4.599]
[1745264023396,3.82265,1579.4,1579.3,4.599]
[1745264030798,1.26623,1579.3,1579.2,0.00951083]
[1745264030998,3.21731083,1579.5,1579.2,4.44150083]
[1745264031191,6.29633083,1579.5,1579.4,1.26615]
[1745264031391,6.29633083,1579.5,1579.4,5.86215]
[1745264031799,6.29633083,1579.5,1579.4,7.64495]
[1745264032589,6.29633083,1579.5,1579.4,48.44495]
[1745264033705,6.29633083,1579.5,1579.4,47.1788]
[1745264034001,6.29633083,1579.5,1579.4,45.396]
[1745264034896,6.29633083,1579.5,1579.4,46.66215]
[1745264035402,6.29633083,1579.5,1579.4,45.396]
[1745264036001,3.08853083,1579.5,1579.4,45.396]
[1745264036504,3.08853083,1579.5,1579.4,46.66215]
[1745264037004,1.26615,1579.4,1579.3,1.7949]
[1745264037306,3.08125,1579.4,1579.3,0.8796]
[1745264037704,6.28905,1579.4,1579.3,0.8796]
[1745264038002,6.28905,1579.4,1579.3,2.14583]
[1745264038203,3.2078,1579.4,1579.3,2.14583]
[1745264038404,1.27561083,1579.5,1579.4,1.26615]
[1745264038598,1.27561083,1579.5,1579.4,2.92975]
[1745264038799,3.09071083,1579.5,1579.4,2.92975]
[1745264039707,3.09071083,1579.5,1579.4,1.6636]
[1745264040003,3.09071083,1579.5,1579.4,2.92975]
[1745264040203,3.09071083,1579.5,1579.4,1.6636]
[1745264041008,3.09071083,1579.5,1579.4,2.92975]
[1745264041206,1.26615,1579.4,1579.3,0.8796]
[1745264041507,3.02035,1579.4,1579.3,0.8796]
[1745264042409,1.26623,1579.3,1579.2,40.80951083]
[1745264042599,3.02043,1579.3,1579.2,40.80951083]
[1745264042999,3.02043,1579.3,1579.2,0.00951083]
[1745264043907,1.26647,1579.0,1578.9,4.592]
[1745264044105,4.47427,1579.0,1578.9,4.58273972]
[1745264044307,1.26663,1578.8,1578.7,50.11015]
[1745264044808,4.47443,1578.8,1578.7,50.11015]
[1745264045206,4.47443,1578.8,1578.7,6.3519]
[1745264045920,6.19373,1578.8,1578.7,6.3519]
[1745264046512,1.26671,1578.7,1578.6,1.70111083]
[1745264046807,1.26703,1578.3,1578.2,4.593]
[1745264047007,1.26703,1578.3,1578.2,0.8756]
[1745264047304,1.26743,1577.8,1577.7,12.99237663]
[1745264047709,1.26743,1577.8,1577.7,8.39937663]
[1745264047912,2.96993,1577.8,1577.7,8.39937663]
[1745264050409,1.26751,1577.7,1577.6,0.88511083]
[1745264050609,6.29531,1577.7,1577.6,0.88511083]
[1745264050915,6.29531,1577.7,1577.6,0.00951083]
[1745264051105,1.26775,1577.4,1577.3,5.4554]
[1745264051301,3.16903,1577.6,1577.2,2.6106]
[1745264051302,1.26783,1577.3,1577.2,2.6106]
[1745264051502,3.16941,1577.4,1577.1,4.595]
[1745264051704,3.08791,1577.2,1577.1,4.595]
[1745264051915,1.26791,1577.2,1577.1,5.86299]
[1745264052116,1.26791,1577.2,1577.1,7.63089]
[1745264052723,1.26789,1577.3,1577.2,1.26791]
[1745264052922,2.96823,1577.4,1577.2,3.03581]
[1745264053222,4.4755,1577.5,1577.4,1.26775]
[1745264053425,4.4755,1577.5,1577.4,4.595]
[1745264053922,4.4755,1577.5,1577.4,6.3629]
[1745264054528,4.4755,1577.5,1577.4,4.595]
[1745264054920,1.26791,1577.2,1577.1,3.03582]
[1745264055121,1.26791,1577.2,1577.1,5.86392]
[1745264055327,1.8301,1577.4,1577.1,5.86392]
[1745264055328,1.26789,1577.3,1577.1,5.86392]
[1745264055529,1.26789,1577.3,1577.2,1.26791]
[1745264056030,3.2078,1577.5,1577.1,4.596]
[1745264056232,3.2078,1577.5,1577.4,1.26775]
[1745264056432,4.47547,1577.5,1577.4,1.26775]
[1745264056727,4.47547,1577.5,1577.4,5.86375]
[1745264057430,4.47547,1577.5,1577.4,4.596]
[1745264057632,4.47547,1577.5,1577.4,5.86375]
[1745264058032,4.47547,1577.5,1577.4,4.596]
[1745264058231,4.47547,1577.5,1577.4,5.86375]
[1745264058433,4.47547,1577.5,1577.4,4.596]
[1745264060927,4.47547,1577.5,1577.4,5.86375]
[1745264061438,4.47547,1577.5,1577.4,4.596]
[1745264061927,4.47547,1577.5,1577.4,5.86375]
[1745264062631,0.00951083,1577.9,1577.4,9.07155]
[1745264062934,6.25119,1577.8,1577.7,1.26751]
[1745264063237,3.2078,1578.8,1578.6,1.26676]
[1745264063430,3.2078,1579.0,1578.5,7.8048]
[1745264063635,1.26679,1578.6,1578.5,45.397]
[1745264063833,1.26679,1578.6,1578.5,40.8]
[1745264064238,1.26687,1578.5,1578.4,1.72411083]
[1745264064736,3.2078,1578.6,1578.4,1.72411083]
[1745264064933,4.47463,1578.6,1578.4,2.99106083]
[1745264065644,0.00951083,1578.7,1578.6,1.26679]
[1745264065939,1.27622083,1578.7,1578.5,1.26682]
[1745264066138,1.27622083,1578.7,1578.6,1.26679]
[1745264066445,0.00951083,1578.7,1578.6,1.26679]
[1745264066742,1.27622083,1578.7,1578.6,1.26679]
[1745264066935,0.00951083,1578.7,1578.6,1.26679]
[1745264067136,0.00951083,1578.7,1578.6,5.85979]
[1745264067341,4.47416,1579.2,1578.8,3.16654]
[1745264067541,3.2078,1579.2,1579.1,1.26639]
[1745264067742,3.2078,1579.5,1579.2,1.26631]
[1745264067944,1.26622,1579.4,1579.2,1.26631]
[1745264068242,1.7821,1579.4,1579.3,1.26623]
[1745264068443,3.04825,1579.4,1579.3,1.26623]
[1745264068741,4.48340083,1579.5,1579.4,1.26615]
[1745264069245,4.48340083,1579.5,1579.3,1.26615]
[1745264069542,1.26615,1579.4,1579.3,1.26615]
[1745264070348,1.26623,1579.3,1579.2,4.593]
[1745264070641,1.26623,1579.3,1579.2,5.85927]
[1745264071144,1.26623,1579.3,1579.2,4.593]
[1745264071645,1.7277,1579.4,1579.2,1.2663]
[1745264071841,1.26631,1579.2,1579.1,1.27583083]
[1745264073546,1.26628,1579.3,1579.1,1.27583083]
[1745264073746,1.26628,1579.3,1579.1,2.98143083]
[1745264074042,1.26628,1579.3,1579.2,2.97191]
[1745264074343,3.21731083,1579.5,1579.4,1.26615]
[1745264074546,3.21731083,1579.5,1579.3,1.26617]
[1745264074746,4.48343083,1579.5,1579.4,1.7056]
[1745264075843,4.48343083,1579.5,1579.4,2.97175]
[1745264076343,4.48343083,1579.5,1579.4,1.7056]
[1745264076542,1.26623,1579.3,1579.2,1.26626]
[1745264076747,1.26623,1579.3,1579.2,1.7218]
[1745264076950,1.26623,1579.3,1579.2,2.98811]
[1745264077248,1.26623,1579.3,1579.2,1.7218]
[1745264077447,1.26631,1579.2,1579.1,0.00951083]
[1745264078353,1.26631,1579.2,1579.1,1.27584083]
[1745264079248,2.97488,1579.4,1579.3,1.26623]
[1745264079749,0.00951083,1579.5,1579.4,1.26615]
[1745264080351,0.00951083,1579.5,1579.4,3.81225]
[1745264080852,1.27558083,1579.5,1579.4,3.81225]
[1745264081547,0.00951083,1579.5,1579.4,3.81225]
[1745264082051,15.51913,1580.3,1580.0,1.26566]
[1745264082252,1.6656,1580.2,1580.1,1.26559]
[1745264082553,1.26559,1580.1,1580.0,1.2656]
[1745264082940,1.26559,1580.1,1580.0,3.0055]
[1745264083156,2.94067083,1580.2,1580.0,1.7399]
[1745264083349,2.94067083,1580.2,1580.1,1.26559]
[1745264083651,1.26559,1580.1,1580.0,3.00551]
[1745264083956,2.94068083,1580.2,1580.0,3.00551]
[1745264084154,1.26559,1580.1,1580.0,1.7399]
[1745264084452,1.26559,1580.1,1580.0,3.00557]
[1745264084646,1.26559,1580.1,1580.0,1.7399]
[1745264085746,1.26567,1580.0,1579.9,41.70381083]
[1745264085946,2.97657,1580.0,1579.9,43.36831083]
[1745264086647,2.97657,1580.0,1579.9,2.56831083]
[1745264087249,2.97657,1580.0,1579.9,3.83406083]
[1745264087655,2.97657,1580.0,1579.9,2.56831083]
[1745264088758,2.97657,1580.0,1579.9,3.83406083]
[1745264089956,0.00951083,1580.2,1580.1,1.26559]
[1745264090150,1.27502083,1580.2,1580.1,1.26559]
[1745264090352,0.00951083,1580.2,1580.1,5.85359]
[1745264090651,1.27502083,1580.2,1580.1,7.55079]
[1745264091658,1.27502083,1580.2,1580.1,6.2852]
[1745264091852,3.00742083,1580.2,1580.1,6.2852]
[1745264092051,3.00742083,1580.2,1580.1,7.55079]
[1745264092456,3.00742083,1580.2,1580.1,6.2852]
[1745264093059,3.00742083,1580.2,1580.1,7.55079]
[1745264093259,3.00742083,1580.2,1580.1,6.2852]
[1745264094857,3.2078,1580.3,1580.1,7.55079]
[1745264095060,4.47323,1580.3,1580.2,1.6609]
[1745264097564,4.47323,1580.3,1580.2,2.92641]
[1745264099260,4.47323,1580.3,1580.2,1.6609]
[1745264100858,3.2078,1580.3,1580.2,2.92641]
[1745264101161,0.00951083,1580.4,1580.3,1.26543]
[1745264101353,0.00951083,1580.4,1580.3,3.95933]
[1745264101754,6.37046,1580.8,1580.5,1.26523]
[1745264101963,1.26526,1580.6,1580.5,1.26523]
[1745264102563,1.26514,1580.7,1580.6,1.26514]
[1745264102753,6.37052,1580.8,1580.4,8.631]
[1745264102954,1.26523,1580.6,1580.5,1.26521]
[1745264103458,1.26523,1580.6,1580.5,1.26527]
[1745264104366,1.26527,1580.5,1580.4,9.89628]
[1745264104551,1.26525,1580.6,1580.5,1.26524]
[1745264104864,8.18423083,1580.8,1580.4,8.631]
[1745264105064,1.26524,1580.6,1580.5,1.26524]
[1745264105357,1.26527,1580.5,1580.4,7.7918]
[1745264105550,3.01087,1580.5,1580.4,7.7918]
[1745264105755,3.01087,1580.5,1580.4,3.2078]
[1745264106365,1.26535,1580.4,1580.3,0.896]
[1745264106661,1.26535,1580.4,1580.3,2.16143]
[1745264107164,1.26531,1580.5,1580.4,1.26529]
[1745264107359,3.21731083,1580.8,1580.4,3.2078]
[1745264107563,1.26512,1580.7,1580.6,1.26511]
[1745264108267,1.27454083,1580.8,1580.7,1.26511]
[1745264108453,0.00951083,1580.8,1580.7,2.15551]
[1745264108860,1.27454083,1580.8,1580.7,2.15551]
[1745264110459,0.00951083,1580.8,1580.7,2.15551]
[1745264110960,1.26494,1581.0,1580.9,1.26495]
[1745264111159,3.2078,1581.1,1581.0,1.26485]
[1745264111160,1.26486,1581.1,1581.0,1.26485]
[1745264111363,1.26486,1581.1,1580.8,11.80018]
[1745264111364,6.36955,1581.3,1580.9,1.26487]
[1745264111563,1.8175,1581.2,1580.8,11.80032]
[1745264111864,6.3694,1581.3,1580.8,8.6378]
[1745264112065,1.2649,1581.0,1580.9,1.26491]
[1745264112267,1.2649,1581.0,1580.9,42.07442083]
[1745264112562,1.26484,1581.1,1581.0,1.26485]
[1745264112960,0.00634052,1581.2,1580.9,40.80951083]
[1745264113567,1.26487,1581.0,1580.9,42.07439083]
[1745264113759,1.26487,1581.0,1580.9,43.74469083]
[1745264114265,1.26483,1581.1,1581.0,1.26484]
[1745264114470,1.26483,1581.1,1581.0,1.6703]
[1745264114968,1.26483,1581.1,1581.0,2.93517]
[1745264115159,1.27109052,1581.2,1581.1,1.26479]
[1745264115462,1.27109052,1581.2,1581.1,2.5208]
[1745264117057,1.26487,1581.0,1580.9,40.80951083]
[1745264117568,1.26487,1581.0,1580.9,42.53981083]
[1745264117863,1.26487,1581.0,1580.9,3.00476083]
[1745264118367,1.26487,1581.0,1580.9,1.73981083]
[1745264118866,1.26487,1581.0,1580.9,3.00476083]
[1745264119268,1.26487,1581.1,1581.0,1.26487]
[1745264119470,1.27109052,1581.2,1581.1,1.26479]
[1745264120567,0.00634052,1581.2,1581.1,5.84679]
[1745264120868,0.00634052,1581.2,1581.1,7.52009]
[1745264121859,1.27105052,1581.2,1581.1,7.52009]
[1745264122264,0.00634052,1581.2,1581.1,7.52009]
[1745264122466,1.27105052,1581.2,1581.1,7.52009]
[1745264123261,0.00634052,1581.2,1581.1,7.52009]
[1745264123462,1.27105052,1581.2,1581.1,7.52009]
[1745264123762,0.00634052,1581.2,1581.1,7.52009]
[1745264124068,1.27105052,1581.2,1581.1,7.52009]
[1745264124467,0.00634052,1581.2,1581.1,7.52009]
[1745264124669,1.27105052,1581.2,1581.1,7.52009]
[1745264126261,1.26487,1581.0,1580.9,0.00951083]
[1745264126965,3.07417,1581.0,1580.9,0.00951083]
[1745264127370,1.26511,1580.7,1580.6,7.7898]
[1745264127973,1.26511,1580.7,1580.6,9.6029]
[1745264128270,1.26511,1580.7,1580.6,6.3951]
[1745264128671,1.26511,1580.7,1580.4,109.46737663]
[1745264128672,1.26527,1580.5,1580.4,109.46737663]
[1745264128872,1.26527,1580.5,1580.4,14.74477663]
[1745264129166,1.26522,1580.6,1580.5,1.26522]
[1745264129371,1.26515,1580.7,1580.6,1.26516]
[1745264129669,1.26519,1580.6,1580.5,3.0316]
[1745264130068,1.26517,1580.7,1580.5,1.7664]
[1745264130273,1.26517,1580.7,1580.6,3.03158]
[1745264130468,1.26517,1580.7,1580.6,1.7664]
[1745264134570,1.26517,1580.7,1580.4,4.579]
[1745264134571,1.26527,1580.5,1580.4,5.84435]
[1745264134770,1.26527,1580.5,1580.4,7.55795]
[1745264135373,1.26527,1580.5,1580.4,6.2926]
[1745264135777,1.26527,1580.5,1580.4,7.55795]
[1745264136974,1.26527,1580.5,1580.4,6.2926]
[1745264138378,1.26527,1580.5,1580.4,4.579]
[1745264138565,1.26535,1580.4,1580.3,44.90031083]
[1745264138769,3.07305,1580.4,1580.3,0.00951083]
[1745264139877,8.07305,1580.4,1580.3,8.3e-07]
[1745264140779,8.18715972,1580.4,1580.3,8.3e-07]
[1745264141275,18.75115972,1580.4,1580.3,8.3e-07]
[1745264142880,18.75116099,1580.4,1580.3,8.3e-07]
[1745264143276,18.63705,1580.4,1580.3,8.3e-07]
[1745264143474,3.07305,1580.4,1580.3,8.3e-07]
[1745264143679,1.26535,1580.4,1580.3,8.3e-07]
[1745264143978,1.26535,1580.4,1580.3,1.26543083]
[1745264144374,1.26535,1580.4,1580.3,2.96003083]
[1745264145179,1.26535,1580.4,1580.3,1.69460083]
[1745264146480,1.26535,1580.4,1580.3,2.96003083]
[1745264146875,1.26535,1580.4,1580.3,1.69460083]
[1745264147174,1.26532,1580.5,1580.4,1.26531]
[1745264148182,1.26532,1580.5,1580.4,3.01571]
[1745264148385,1.2652,1580.6,1580.5,1.26527]
[1745264148578,1.2652,1580.6,1580.5,4.72877]
[1745264148781,1.26517,1580.7,1580.6,1.26515]
[1745264149079,1.26498,1580.9,1580.8,1.26496]
[1745264149383,1.26484,1581.1,1581.0,1.26483]
[1745264149884,3.21414052,1581.2,1581.0,1.26483]
[1745264150085,3.21414052,1581.2,1581.1,1.7065]
[1745264150583,4.47885052,1581.2,1581.1,1.7065]
[1745264159482,1.7437,1581.6,1581.1,1.7065]
[1745264159483,3.16082,1581.7,1581.2,3.16177]
[1745264159684,1.26447,1581.5,1581.4,3.2078]
[1745264159882,4.8756,1581.8,1581.4,4.9995]
[1745264160090,1.26439,1581.6,1581.5,1.7917]
[1745264161087,1.26439,1581.6,1581.5,3.05617]
[1745264161288,1.26439,1581.6,1581.5,1.7917]
[1745264163589,3.07539,1581.6,1581.5,1.7917]
[1745264163989,1.26439,1581.6,1581.5,3.05617]
[1745264164188,1.26439,1581.6,1581.5,1.7917]
[1745264164783,3.07779,1581.6,1581.5,1.7917]
[1745264165186,1.26439,1581.6,1581.5,1.7917]
[1745264169594,3.09389,1581.6,1581.5,1.7917]
[1745264170396,11.4055,1581.6,1580.6,11.60717663]
[1745264170595,1.26503,1580.8,1580.7,1.7038]
[1745264170896,1.26511,1580.7,1580.6,8.39937663]
[1745264171095,12.58461,1580.7,1580.6,5.35448663]
[1745264171395,1.26519,1580.6,1580.5,7.74589077]
[1745264171593,1.26519,1580.6,1580.5,0.00951083]
[1745264171594,6.21649,1580.6,1580.5,0.00951083]
[1745264171896,18.13303762,1580.6,1580.5,8.3e-07]
[1745264172092,18.24713248,1580.6,1580.5,8.3e-07]
[1745264172285,11.21649,1580.6,1580.5,8.3e-07]
[1745264172493,11.33058551,1580.6,1580.5,8.3e-07]
[1745264173998,6.21649,1580.6,1580.5,8.3e-07]
[1745264174194,6.21649,1580.6,1580.5,1.66610083]
[1745264175000,6.21649,1580.6,1580.5,8.3e-07]
[1745264175701,6.33058451,1580.6,1580.5,8.3e-07]
[1745264175902,6.21649,1580.6,1580.5,8.3e-07]
[1745264176104,11.21649,1580.6,1580.5,8.3e-07]
[1745264176401,11.33058445,1580.6,1580.5,8.3e-07]
[1745264176598,6.33058445,1580.6,1580.5,8.3e-07]
[1745264176801,11.33058445,1580.6,1580.5,8.3e-07]
[1745264177194,6.21649,1580.6,1580.5,8.3e-07]
[1745264177400,6.33058947,1580.6,1580.5,8.3e-07]
[1745264178400,1.26527,1580.5,1580.4,8.3e-07]
[1745264178695,8.40827,1580.5,1580.4,8.3e-07]
[1745264178997,14.39227,1580.5,1580.4,8.3e-07]
[1745264179200,1.26567,1580.0,1579.9,1.6742]
[1745264180098,3.02207,1580.0,1579.9,1.6742]
[1745264180500,1.26567,1580.0,1579.9,1.6742]
[1745264180894,1.26567,1580.0,1579.9,2.93995]
[1745264181092,1.26567,1580.0,1579.9,7.93995]
[1745264181698,1.26559,1580.2,1580.1,1.26555]
[1745264181904,1.26559,1580.1,1580.0,7.15]
[1745264182105,1.26558,1580.2,1580.1,1.26555]
[1745264182907,1.26559,1580.1,1580.0,0.8905]
[1745264183312,1.26559,1580.1,1580.0,2.15617]
[1745264183808,1.26559,1580.1,1580.0,0.8905]
[1745264184107,1.26559,1580.1,1580.0,2.15617]
[1745264184306,1.26559,1580.1,1580.0,0.8905]
[1745264184606,1.26559,1580.1,1580.0,2.15617]
[1745264186511,12.35475,1580.7,1580.2,1.26551]
[1745264186702,1.26534,1580.5,1580.4,4.4731]
[1745264187811,1.26534,1580.5,1580.4,3.2078]
[1745264188212,1.26534,1580.5,1580.4,1.26535]
[1745264189108,1.26534,1580.5,1580.4,4.47315]
[1745264189506,1.26526,1580.6,1580.5,1.26521]
[1745264189718,1.26526,1580.6,1580.5,0.9169]
[1745264190911,1.27457083,1580.8,1580.7,1.26511]
[1745264191316,1.26515,1580.7,1580.6,1.27463083]
[1745264191619,1.27459083,1580.8,1580.7,1.26511]
[1745264192409,1.26511,1580.7,1580.6,0.00951083]
[1745264193105,1.26511,1580.7,1580.6,1.27470083]
[1745264193310,1.26511,1580.7,1580.6,0.00951083]
[1745264193917,1.26511,1580.7,1580.6,1.78381083]
[1745264194705,1.26511,1580.7,1580.6,3.04900083]
[1745264196207,1.27461083,1580.8,1580.7,1.26511]
[1745264196615,1.27461083,1580.8,1580.7,2.09801]
[1745264196914,1.27461083,1580.8,1580.7,3.84041]
[1745264197123,1.27461083,1580.8,1580.7,2.5753]
[1745264199821,2.99641083,1580.8,1580.7,2.5753]
[1745264200024,1.27461083,1580.8,1580.7,2.5753]
[1745264202025,1.26511,1580.7,1580.6,0.00951083]
[1745264202216,1.26511,1580.7,1580.6,1.74561083]
[1745264202416,3.09231,1580.7,1580.6,1.74561083]
[1745264202716,0.00951083,1580.8,1580.6,3.01080083]
[1745264202917,3.2078,1581.2,1580.9,3.16237]
[1745264203224,1.26479,1581.2,1581.1,1.26479]
[1745264203616,1.26479,1581.2,1581.1,3.00089]
[1745264203817,1.26479,1581.2,1581.1,1.7361]
[1745264204727,1.26479,1581.2,1581.1,3.00089]
[1745264206120,1.26479,1581.2,1581.1,1.7361]
[1745264207326,0.00951083,1581.3,1581.2,1.26471]
[1745264207518,1.27414083,1581.3,1581.2,1.26471]
[1745264207827,1.27414083,1581.3,1581.2,4.47251]
[1745264212426,1.27414083,1581.3,1581.2,6.13521]
[1745264214725,0.00951083,1581.3,1581.2,6.13521]
[1745264215431,1.27414083,1581.3,1581.2,6.13521]
[1745264215829,0.00951083,1581.3,1581.2,6.13521]
[1745264216029,1.27414083,1581.3,1581.2,2.92741]
[1745264219528,3.16194,1581.2,1580.8,3.2078]
[1745264219730,1.26487,1581.0,1580.9,1.7865]
[1745264219931,1.26487,1581.0,1580.9,3.05145]
[1745264220131,1.26487,1581.0,1580.9,1.7865]
[1745264220631,1.7962,1581.1,1581.0,1.26487]
[1745264220939,1.26485,1581.1,1581.0,1.26487]
[1745264221538,1.26479,1581.1,1581.0,9.04559]
[1745264221934,1.26479,1581.1,1581.0,10.83209]
[1745264222427,1.26479,1581.1,1581.0,9.5673]
[1745264222626,1.26479,1581.1,1581.0,10.83217]
[1745264224335,1.26479,1581.1,1581.0,7.62437]
[1745264224536,1.26487,1581.0,1580.9,1.26488]
[1745264224728,1.26511,1580.7,1580.6,0.00951083]
[1745264225037,4.47291,1580.7,1580.6,0.00951083]
[1745264225628,9.47291,1580.7,1580.6,0.00951083]
[1745264225829,5.31731,1580.7,1580.6,0.00951083]
[1745264226128,2.10951,1580.7,1580.6,0.00951083]
[1745264226534,1.26511,1580.7,1580.6,0.00951083]
[1745264226736,1.26511,1580.7,1580.6,3.94440083]
[1745264227240,1.26511,1580.7,1580.6,2.67921083]
[1745264228438,1.26507,1580.8,1580.7,1.26504]
[1745264228735,1.26507,1580.8,1580.7,6.3893]
[1745264229148,1.26507,1580.8,1580.7,7.65441]
[1745264229446,1.26507,1580.8,1580.7,6.3893]